[Event "Titled Tuesday Blitz November 15 Early 2022"]
[White "Gurvich, Vitaly"]
[Black "Begunov, Konstantin"]
[WhiteFideId "24164852"]
[BlackFideId "4118510"]
[WhiteElo "2342"]
[BlackElo "2140"]
[Result "1-0"]
[Round "04"]
[TimeControl "180+1"]
[Date "2022.11.16"]
[WhiteClock "0:02:00"]
[BlackClock "0:00:06"]

1. e4 {[%clk 0:03:00]}  c5 {[%clk 0:02:59]} 2. d4 {[%clk 0:02:58]}  cxd4 {[%clk 0:02:59]} 3. c3 {[%clk 0:02:59]}  Nf6 {[%clk 0:02:58]} 4. e5 {[%clk 0:02:58]}  Nd5 {[%clk 0:02:58]} 5. Nf3 {[%clk 0:02:58]}  Nc6 {[%clk 0:02:58]} 6. Bc4 {[%clk 0:02:57]}  Nb6 {[%clk 0:02:58]} 7. Bb3 {[%clk 0:02:58]}  d5 {[%clk 0:02:58]} 8. exd6 {[%clk 0:02:58]}  e6 {[%clk 0:02:58]} 9. cxd4 {[%clk 0:02:53]}  Bxd6 {[%clk 0:02:58]} 10. O-O {[%clk 0:02:53]}  O-O {[%clk 0:02:58]} 11. Nc3 {[%clk 0:02:53]}  Nb4 {[%clk 0:02:58]} 12. a3 {[%clk 0:02:52]}  N4d5 {[%clk 0:02:57]} 13. Ne4 {[%clk 0:02:53]}  Be7 {[%clk 0:02:55]} 14. Bc2 {[%clk 0:02:53]}  Bd7 {[%clk 0:02:48]} 15. Qd3 {[%clk 0:02:49]}  g6 {[%clk 0:02:05]} 16. Bh6 {[%clk 0:02:46]}  Re8 {[%clk 0:02:06]} 17. Nfg5 {[%clk 0:02:38]}  Nf6 {[%clk 0:01:56]} 18. Nxf7 {[%clk 0:02:26]}  Kxf7 {[%clk 0:01:54]} 19. Ng5+ {[%clk 0:02:24]}  Kg8 {[%clk 0:01:51]} 20. Nxh7 {[%clk 0:02:25]}  Kh8 {[%clk 0:01:07]} 21. Ng5 {[%clk 0:02:10]}  Qc7 {[%clk 0:00:17]} 22. Qxg6 {[%clk 0:02:04]}  Rg8 {[%clk 0:00:06]} 23. Nf7# {[%clk 0:02:00]} 1-0


[Site "https://www.chess.com"]

[Event "Titled Tuesday Blitz November 15 Early 2022"]
[White "Gutkin, Ilya"]
[Black "Lohani, Sujana"]
[WhiteFideId "16203470"]
[BlackFideId "12311987"]
[WhiteElo "2265"]
[BlackElo "1691"]
[Result "1-0"]
[Round "04"]
[TimeControl "180+1"]
[Date "2022.11.16"]
[WhiteClock "0:00:31"]
[BlackClock "0:00:01"]

1. Nf3 {[%clk 0:03:00]}  g6 {[%clk 0:03:00]} 2. e4 {[%clk 0:03:00]}  Bg7 {[%clk 0:02:54]} 3. d4 {[%clk 0:03:00]}  d6 {[%clk 0:02:26]} 4. c3 {[%clk 0:02:58]}  Nf6 {[%clk 0:02:13]} 5. Bd3 {[%clk 0:02:59]}  O-O {[%clk 0:02:12]} 6. Kf1 {[%clk 0:02:53]}  c5 {[%clk 0:02:13]} 7. dxc5 {[%clk 0:02:27]}  dxc5 {[%clk 0:02:06]} 8. Qe2 {[%clk 0:02:27]}  Nc6 {[%clk 0:02:01]} 9. Be3 {[%clk 0:02:26]}  b6 {[%clk 0:01:49]} 10. Nbd2 {[%clk 0:02:25]}  Ng4 {[%clk 0:01:41]} 11. Bf4 {[%clk 0:02:19]}  e5 {[%clk 0:01:32]} 12. Bg5 {[%clk 0:02:08]}  Qc7 {[%clk 0:01:13]} 13. h3 {[%clk 0:02:06]}  Nf6 {[%clk 0:01:12]} 14. Nc4 {[%clk 0:02:04]}  Nd7 {[%clk 0:01:03]} 15. Ne3 {[%clk 0:02:00]}  Bb7 {[%clk 0:00:40]} 16. Nd5 {[%clk 0:01:52]}  Qb8 {[%clk 0:00:37]} 17. Bb5 {[%clk 0:01:50]}  f6 {[%clk 0:00:26]} 18. Be3 {[%clk 0:01:11]}  Kh8 {[%clk 0:00:15]} 19. Rd1 {[%clk 0:01:09]}  a6 {[%clk 0:00:13]} 20. Bd3 {[%clk 0:01:00]}  b5 {[%clk 0:00:04]} 21. h4 {[%clk 0:00:55]}  c4 {[%clk 0:00:04]} 22. Bc2 {[%clk 0:00:53]}  Qc8 {[%clk 0:00:01]} 23. h5 {[%clk 0:00:52]}  Nd8 {[%clk 0:00:01]} 24. h6 {[%clk 0:00:45]}  g5 {[%clk 0:00:02]} 25. hxg7+ {[%clk 0:00:45]}  Kxg7 {[%clk 0:00:02]} 26. Ne7 {[%clk 0:00:41]}  Qc7 {[%clk 0:00:01]} 27. Nf5+ {[%clk 0:00:41]}  Kg8 {[%clk 0:00:01]} 28. Nh2 {[%clk 0:00:31]} 1-0


[Site "https://www.chess.com"]

[Event "Titled Tuesday Blitz November 15 Early 2022"]
[White "Hajiyev, Kanan"]
[Black "Kosteniuk, Alexandra"]
[WhiteFideId "13404148"]
[BlackFideId "4128125"]
[WhiteElo "2118"]
[BlackElo "2469"]
[Result "1/2-1/2"]
[Round "04"]
[TimeControl "180+1"]
[Date "2022.11.16"]
[WhiteClock "0:00:07"]
[BlackClock "0:00:11"]

1. d4 {[%clk 0:02:59]}  f5 {[%clk 0:02:59]} 2. g3 {[%clk 0:02:57]}  Nf6 {[%clk 0:02:59]} 3. Bg2 {[%clk 0:02:58]}  g6 {[%clk 0:03:00]} 4. b3 {[%clk 0:02:59]}  Bg7 {[%clk 0:03:00]} 5. Bb2 {[%clk 0:02:59]}  a5 {[%clk 0:02:58]} 6. Nd2 {[%clk 0:03:00]}  a4 {[%clk 0:02:58]} 7. Ngf3 {[%clk 0:02:55]}  a3 {[%clk 0:02:54]} 8. Bc3 {[%clk 0:02:54]}  Nd5 {[%clk 0:02:50]} 9. Nb1 {[%clk 0:02:51]}  Nxc3 {[%clk 0:02:50]} 10. Nxc3 {[%clk 0:02:52]}  c5 {[%clk 0:02:49]} 11. O-O {[%clk 0:02:47]}  Nc6 {[%clk 0:02:48]} 12. e3 {[%clk 0:02:38]}  Qa5 {[%clk 0:02:43]} 13. Ne2 {[%clk 0:02:28]}  cxd4 {[%clk 0:02:40]} 14. Nfxd4 {[%clk 0:02:17]}  O-O {[%clk 0:02:35]} 15. Qe1 {[%clk 0:02:09]}  Qxe1 {[%clk 0:02:29]} 16. Raxe1 {[%clk 0:02:10]}  Nb4 {[%clk 0:02:27]} 17. Ra1 {[%clk 0:02:01]}  e5 {[%clk 0:02:01]} 18. Nb5 {[%clk 0:01:44]}  Nxc2 {[%clk 0:02:01]} 19. Rac1 {[%clk 0:01:35]}  Nb4 {[%clk 0:02:01]} 20. Nec3 {[%clk 0:01:26]}  e4 {[%clk 0:01:51]} 21. Rfd1 {[%clk 0:01:23]}  d5 {[%clk 0:01:29]} 22. Nc7 {[%clk 0:01:13]}  Ra5 {[%clk 0:01:28]} 23. N7xd5 {[%clk 0:01:00]}  Nd3 {[%clk 0:01:21]} 24. Rc2 {[%clk 0:00:49]}  Be6 {[%clk 0:01:17]} 25. b4 {[%clk 0:00:44]}  Rxd5 {[%clk 0:01:15]} 26. Nxd5 {[%clk 0:00:42]}  Rd8 {[%clk 0:00:58]} 27. Nf4 {[%clk 0:00:37]}  Bf7 {[%clk 0:00:47]} 28. Nxd3 {[%clk 0:00:34]}  exd3 {[%clk 0:00:47]} 29. Rcd2 {[%clk 0:00:34]}  Bb2 {[%clk 0:00:37]} 30. Rxd3 {[%clk 0:00:16]}  Rxd3 {[%clk 0:00:37]} 31. Rxd3 {[%clk 0:00:16]}  Bxa2 {[%clk 0:00:38]} 32. Bxb7 {[%clk 0:00:14]}  Bc4 {[%clk 0:00:35]} 33. Bd5+ {[%clk 0:00:06]}  Bxd5 {[%clk 0:00:35]} 34. Rxd5 {[%clk 0:00:07]}  a2 {[%clk 0:00:35]} 35. Ra5 {[%clk 0:00:07]}  a1=Q+ {[%clk 0:00:36]} 36. Rxa1 {[%clk 0:00:08]}  Bxa1 {[%clk 0:00:37]} 37. Kg2 {[%clk 0:00:06]}  Kf7 {[%clk 0:00:36]} 38. Kf3 {[%clk 0:00:06]}  Be5 {[%clk 0:00:32]} 39. e4 {[%clk 0:00:06]}  Ke6 {[%clk 0:00:29]} 40. exf5+ {[%clk 0:00:05]}  Kxf5 {[%clk 0:00:29]} 41. h4 {[%clk 0:00:04]}  h5 {[%clk 0:00:28]} 42. b5 {[%clk 0:00:05]}  Bd4 {[%clk 0:00:27]} 43. Kg2 {[%clk 0:00:01]}  Ke6 {[%clk 0:00:15]} 44. f3 {[%clk 0:00:02]}  Kd5 {[%clk 0:00:13]} 45. g4 {[%clk 0:00:02]}  hxg4 {[%clk 0:00:14]} 46. fxg4 {[%clk 0:00:03]}  Kc5 {[%clk 0:00:13]} 47. Kf3 {[%clk 0:00:02]}  Kxb5 {[%clk 0:00:12]} 48. g5 {[%clk 0:00:02]}  Kc6 {[%clk 0:00:11]} 49. Kg4 {[%clk 0:00:03]}  Kd6 {[%clk 0:00:11]} 50. h5 {[%clk 0:00:04]}  gxh5+ {[%clk 0:00:11]} 51. Kxh5 {[%clk 0:00:05]}  Ke7 {[%clk 0:00:11]} 52. g6 {[%clk 0:00:06]}  Kf6 {[%clk 0:00:11]} 53. g7 {[%clk 0:00:07]}  Kxg7 {[%clk 0:00:11]} 1/2-1/2


[Site "https://www.chess.com"]

[Event "Titled Tuesday Blitz November 15 Early 2022"]
[White "Hirneise, Jens"]
[Black "Luxama, Jacques Muller"]
[WhiteFideId "24614734"]
[BlackFideId "11900113"]
[WhiteElo "2344"]
[BlackElo "1931"]
[Result "1-0"]
[Round "04"]
[TimeControl "180+1"]
[Date "2022.11.16"]
[WhiteClock "0:00:12"]
[BlackClock "0:01:15"]

1. e4 {[%clk 0:01:04]}  e5 {[%clk 0:02:57]} 2. Nf3 {[%clk 0:01:03]}  Nc6 {[%clk 0:02:57]} 3. d4 {[%clk 0:01:02]}  exd4 {[%clk 0:02:56]} 4. Nxd4 {[%clk 0:01:03]}  Qh4 {[%clk 0:02:55]} 5. Nb5 {[%clk 0:01:02]}  Qxe4+ {[%clk 0:02:46]} 6. Be2 {[%clk 0:01:02]}  Kd8 {[%clk 0:02:42]} 7. O-O {[%clk 0:01:01]}  a6 {[%clk 0:02:41]} 8. N5c3 {[%clk 0:00:55]}  Qg6 {[%clk 0:02:39]} 9. Nd5 {[%clk 0:00:53]}  Bd6 {[%clk 0:02:25]} 10. Nbc3 {[%clk 0:00:50]}  Nf6 {[%clk 0:02:22]} 11. Bf4 {[%clk 0:00:46]}  Nxd5 {[%clk 0:02:17]} 12. Nxd5 {[%clk 0:00:46]}  Bxf4 {[%clk 0:02:17]} 13. Nxf4 {[%clk 0:00:47]}  Qf5 {[%clk 0:02:15]} 14. Qd2 {[%clk 0:00:44]}  d6 {[%clk 0:02:12]} 15. Bd3 {[%clk 0:00:36]}  Qc5 {[%clk 0:01:53]} 16. Rae1 {[%clk 0:00:22]}  Bd7 {[%clk 0:01:49]} 17. Re3 {[%clk 0:00:22]}  Kc8 {[%clk 0:01:45]} 18. Rfe1 {[%clk 0:00:21]}  Kb8 {[%clk 0:01:44]} 19. a3 {[%clk 0:00:22]}  a5 {[%clk 0:01:40]} 20. c3 {[%clk 0:00:20]}  a4 {[%clk 0:01:38]} 21. Be2 {[%clk 0:00:18]}  Ra5 {[%clk 0:01:35]} 22. Bf3 {[%clk 0:00:18]}  Qg5 {[%clk 0:01:28]} 23. Nd3 {[%clk 0:00:16]}  Ne5 {[%clk 0:01:23]} 24. Nxe5 {[%clk 0:00:15]}  Rxe5 {[%clk 0:01:23]} 25. Qd4 {[%clk 0:00:13]}  Rhe8 {[%clk 0:01:20]} 26. h4 {[%clk 0:00:14]}  Qf6 {[%clk 0:01:18]} 27. Qb4 {[%clk 0:00:12]}  Rxe3 {[%clk 0:01:15]} 28. Qxb7# {[%clk 0:00:12]} 1-0


[Site "https://www.chess.com"]

[Event "Titled Tuesday Blitz November 15 Early 2022"]
[White "Ilkhomi, Jaloliddin"]
[Black "Trost, Edvin"]
[WhiteFideId "14700948"]
[BlackFideId "1729519"]
[WhiteElo "2045"]
[BlackElo "2247"]
[Result "0-1"]
[Round "04"]
[TimeControl "180+1"]
[Date "2022.11.16"]
[WhiteClock "0:00:12"]
[BlackClock "0:01:05"]

1. d4 {[%clk 0:03:00]}  Nf6 {[%clk 0:02:57]} 2. Nf3 {[%clk 0:02:58]}  d5 {[%clk 0:02:55]} 3. Bf4 {[%clk 0:02:57]}  Bf5 {[%clk 0:02:49]} 4. e3 {[%clk 0:02:56]}  e6 {[%clk 0:02:49]} 5. Bd3 {[%clk 0:02:56]}  Bd6 {[%clk 0:02:30]} 6. Bxf5 {[%clk 0:02:54]}  exf5 {[%clk 0:02:27]} 7. Bxd6 {[%clk 0:02:50]}  Qxd6 {[%clk 0:02:28]} 8. Nbd2 {[%clk 0:02:49]}  O-O {[%clk 0:02:25]} 9. c3 {[%clk 0:02:45]}  f4 {[%clk 0:02:20]} 10. exf4 {[%clk 0:02:41]}  Qxf4 {[%clk 0:02:21]} 11. O-O {[%clk 0:02:39]}  Nbd7 {[%clk 0:02:18]} 12. Re1 {[%clk 0:02:38]}  Rfe8 {[%clk 0:02:16]} 13. Nf1 {[%clk 0:02:37]}  Ne4 {[%clk 0:02:12]} 14. Ng3 {[%clk 0:02:34]}  Re6 {[%clk 0:02:06]} 15. Re3 {[%clk 0:02:07]}  Nxf2 {[%clk 0:02:03]} 16. Rxe6 {[%clk 0:01:24]}  Nxd1 {[%clk 0:01:59]} 17. Re7 {[%clk 0:01:15]}  Qd6 {[%clk 0:01:54]} 18. Re2 {[%clk 0:01:13]}  Nxb2 {[%clk 0:01:44]} 19. Rxb2 {[%clk 0:01:14]}  Nb6 {[%clk 0:01:44]} 20. Re1 {[%clk 0:01:13]}  Qc6 {[%clk 0:01:37]} 21. Rbe2 {[%clk 0:01:12]}  h6 {[%clk 0:01:35]} 22. Re3 {[%clk 0:00:55]}  Nc4 {[%clk 0:01:30]} 23. Re7 {[%clk 0:00:55]}  Rf8 {[%clk 0:01:24]} 24. Nf5 {[%clk 0:00:43]}  Qf6 {[%clk 0:01:21]} 25. Ng3 {[%clk 0:00:42]}  c5 {[%clk 0:01:14]} 26. Rxb7 {[%clk 0:00:40]}  cxd4 {[%clk 0:01:12]} 27. cxd4 {[%clk 0:00:41]}  Qa6 {[%clk 0:01:10]} 28. Rd7 {[%clk 0:00:28]}  Qxa2 {[%clk 0:01:08]} 29. Rxd5 {[%clk 0:00:23]}  Ne3 {[%clk 0:01:08]} 30. Rxe3 {[%clk 0:00:16]}  Qxd5 {[%clk 0:01:08]} 31. h3 {[%clk 0:00:17]}  a5 {[%clk 0:01:07]} 32. Re5 {[%clk 0:00:15]}  Qd8 {[%clk 0:01:06]} 33. Nf5 {[%clk 0:00:15]}  a4 {[%clk 0:01:06]} 34. Ne7+ {[%clk 0:00:15]}  Kh8 {[%clk 0:01:06]} 35. Nc6 {[%clk 0:00:16]}  Qb6 {[%clk 0:01:06]} 36. Ra5 {[%clk 0:00:12]}  Qxc6 {[%clk 0:01:05]} 0-1


[Site "https://www.chess.com"]

[Event "Titled Tuesday Blitz November 15 Early 2022"]
[White "Iturrizaga Bonelli, Eduardo"]
[Black "Paravyan, David"]
[WhiteFideId "3901211"]
[BlackFideId "4194985"]
[WhiteElo "2637"]
[BlackElo "2546"]
[Result "0-1"]
[Round "04"]
[TimeControl "180+1"]
[Date "2022.11.15"]
[WhiteClock "0:00:04"]
[BlackClock "0:00:05"]

1. c4 {[%clk 0:02:58]}  Nf6 {[%clk 0:02:59]} 2. g3 {[%clk 0:02:59]}  g6 {[%clk 0:02:58]} 3. Bg2 {[%clk 0:02:59]}  Bg7 {[%clk 0:02:58]} 4. Nc3 {[%clk 0:02:59]}  O-O {[%clk 0:02:59]} 5. d4 {[%clk 0:03:00]}  Nc6 {[%clk 0:02:58]} 6. Nf3 {[%clk 0:02:52]}  d5 {[%clk 0:02:58]} 7. cxd5 {[%clk 0:02:49]}  Nxd5 {[%clk 0:02:59]} 8. O-O {[%clk 0:02:50]}  Nb6 {[%clk 0:02:57]} 9. e3 {[%clk 0:02:49]}  a5 {[%clk 0:02:56]} 10. h3 {[%clk 0:02:49]}  a4 {[%clk 0:02:53]} 11. Qe2 {[%clk 0:02:43]}  e5 {[%clk 0:02:52]} 12. dxe5 {[%clk 0:02:38]}  Nxe5 {[%clk 0:02:51]} 13. Nxe5 {[%clk 0:02:38]}  Bxe5 {[%clk 0:02:52]} 14. a3 {[%clk 0:02:37]}  Be6 {[%clk 0:02:48]} 15. Rd1 {[%clk 0:02:36]}  Qe7 {[%clk 0:02:45]} 16. e4 {[%clk 0:02:12]}  Bb3 {[%clk 0:02:43]} 17. Rd2 {[%clk 0:02:10]}  Bg7 {[%clk 0:02:33]} 18. Kh2 {[%clk 0:02:05]}  h5 {[%clk 0:02:25]} 19. h4 {[%clk 0:02:03]}  Rfe8 {[%clk 0:02:24]} 20. f4 {[%clk 0:01:55]}  c6 {[%clk 0:02:13]} 21. Qf2 {[%clk 0:01:38]}  Nc4 {[%clk 0:02:12]} 22. Re2 {[%clk 0:01:38]}  Rad8 {[%clk 0:01:21]} 23. e5 {[%clk 0:01:31]}  f6 {[%clk 0:01:19]} 24. Ne4 {[%clk 0:01:28]}  fxe5 {[%clk 0:01:17]} 25. f5 {[%clk 0:01:28]}  gxf5 {[%clk 0:01:05]} 26. Qxf5 {[%clk 0:00:55]}  Qf7 {[%clk 0:00:45]} 27. Qxf7+ {[%clk 0:00:55]}  Kxf7 {[%clk 0:00:44]} 28. Bg5 {[%clk 0:00:56]}  Rd1 {[%clk 0:00:18]} 29. Rxd1 {[%clk 0:00:56]}  Bxd1 {[%clk 0:00:19]} 30. Rf2+ {[%clk 0:00:56]}  Kg8 {[%clk 0:00:17]} 31. Bf1 {[%clk 0:00:34]}  b5 {[%clk 0:00:16]} 32. Bd3 {[%clk 0:00:35]}  Rf8 {[%clk 0:00:11]} 33. Rxf8+ {[%clk 0:00:13]}  Kxf8 {[%clk 0:00:12]} 34. Bxc4 {[%clk 0:00:10]}  bxc4 {[%clk 0:00:13]} 35. Kg2 {[%clk 0:00:10]}  Kf7 {[%clk 0:00:09]} 36. Nd6+ {[%clk 0:00:11]}  Ke6 {[%clk 0:00:10]} 37. Nxc4 {[%clk 0:00:11]}  e4 {[%clk 0:00:09]} 38. Bc1 {[%clk 0:00:08]}  Bd4 {[%clk 0:00:08]} 39. Be3 {[%clk 0:00:06]}  c5 {[%clk 0:00:05]} 40. Bc1 {[%clk 0:00:06]}  Bf3+ {[%clk 0:00:04]} 41. Kf1 {[%clk 0:00:06]}  Kd5 {[%clk 0:00:05]} 42. Ne3+ {[%clk 0:00:07]}  Kc6 {[%clk 0:00:05]} 43. Nc4 {[%clk 0:00:04]}  Kb5 {[%clk 0:00:05]} 44. Nd2 {[%clk 0:00:04]}  Be3 {[%clk 0:00:04]} 45. Nxf3 {[%clk 0:00:01]}  Bxc1 {[%clk 0:00:05]} 46. Ng5 {[%clk 0:00:01]}  Bxb2 {[%clk 0:00:05]} 47. Nxe4 {[%clk 0:00:02]}  Bxa3 {[%clk 0:00:05]} 48. Ke2 {[%clk 0:00:02]}  Bb2 {[%clk 0:00:05]} 49. Kd3 {[%clk 0:00:03]}  a3 {[%clk 0:00:05]} 50. Kc2 {[%clk 0:00:04]}  c4 {[%clk 0:00:04]} 51. Nd6+ {[%clk 0:00:04]}  Kb4 {[%clk 0:00:05]} 52. Nf5 {[%clk 0:00:04]}  Be5 {[%clk 0:00:05]} 53. Kb1 {[%clk 0:00:04]}  Kb3 {[%clk 0:00:05]} 0-1


[Site "https://www.chess.com"]

[Event "Titled Tuesday Blitz November 15 Early 2022"]
[White "Ivic, Velimir"]
[Black "Atakishiyev, Elmar"]
[WhiteFideId "950122"]
[BlackFideId "13410547"]
[WhiteElo "2625"]
[BlackElo "2194"]
[Result "1-0"]
[Round "04"]
[TimeControl "180+1"]
[Date "2022.11.15"]
[WhiteClock "0:00:07"]
[BlackClock "0:00:04"]

1. d4 {[%clk 0:02:55]}  Nf6 {[%clk 0:02:58]} 2. c4 {[%clk 0:02:55]}  g6 {[%clk 0:02:52]} 3. Nc3 {[%clk 0:02:54]}  d5 {[%clk 0:02:53]} 4. cxd5 {[%clk 0:02:54]}  Nxd5 {[%clk 0:02:54]} 5. Bd2 {[%clk 0:02:51]}  Bg7 {[%clk 0:02:52]} 6. e4 {[%clk 0:02:51]}  Nb6 {[%clk 0:02:52]} 7. Be3 {[%clk 0:02:50]}  O-O {[%clk 0:02:53]} 8. Be2 {[%clk 0:02:44]}  Nc6 {[%clk 0:02:42]} 9. Nf3 {[%clk 0:02:38]}  Bg4 {[%clk 0:02:41]} 10. d5 {[%clk 0:02:38]}  Bxf3 {[%clk 0:02:41]} 11. gxf3 {[%clk 0:02:39]}  Na5 {[%clk 0:02:32]} 12. Bd4 {[%clk 0:02:25]}  e5 {[%clk 0:02:08]} 13. Bc5 {[%clk 0:02:21]}  Re8 {[%clk 0:02:03]} 14. b3 {[%clk 0:02:13]}  c6 {[%clk 0:01:50]} 15. d6 {[%clk 0:01:44]}  Nd7 {[%clk 0:01:45]} 16. Be3 {[%clk 0:01:39]}  b6 {[%clk 0:01:39]} 17. b4 {[%clk 0:01:35]}  Nb7 {[%clk 0:01:39]} 18. Ba6 {[%clk 0:01:35]}  Rb8 {[%clk 0:01:39]} 19. Qd3 {[%clk 0:01:29]}  Qf6 {[%clk 0:01:30]} 20. Bxb7 {[%clk 0:01:25]}  Rxb7 {[%clk 0:01:29]} 21. O-O-O {[%clk 0:01:22]}  Qxf3 {[%clk 0:01:10]} 22. b5 {[%clk 0:01:21]}  cxb5 {[%clk 0:01:04]} 23. Nxb5 {[%clk 0:01:20]}  Bf8 {[%clk 0:00:44]} 24. Qd5 {[%clk 0:00:57]}  Rbb8 {[%clk 0:00:39]} 25. Nc7 {[%clk 0:00:57]}  Rec8 {[%clk 0:00:32]} 26. Qc6 {[%clk 0:00:27]}  Bxd6 {[%clk 0:00:20]} 27. Rxd6 {[%clk 0:00:25]}  Qxh1+ {[%clk 0:00:20]} 28. Rd1 {[%clk 0:00:21]}  Qf3 {[%clk 0:00:14]} 29. Rxd7 {[%clk 0:00:21]}  Qe2 {[%clk 0:00:07]} 30. Qd5 {[%clk 0:00:13]}  Rf8 {[%clk 0:00:05]} 31. Qxe5 {[%clk 0:00:11]}  Qe1+ {[%clk 0:00:03]} 32. Kc2 {[%clk 0:00:10]}  Qe2+ {[%clk 0:00:03]} 33. Kc1 {[%clk 0:00:10]}  Qc4+ {[%clk 0:00:03]} 34. Kd2 {[%clk 0:00:08]}  Qb4+ {[%clk 0:00:03]} 35. Ke2 {[%clk 0:00:08]}  Qc4+ {[%clk 0:00:03]} 36. Kf3 {[%clk 0:00:08]}  Qf1 {[%clk 0:00:03]} 37. Bd4 {[%clk 0:00:07]}  Qd1+ {[%clk 0:00:02]} 38. Kg2 {[%clk 0:00:06]}  Qg4+ {[%clk 0:00:03]} 39. Kf1 {[%clk 0:00:06]}  Qd1+ {[%clk 0:00:03]} 40. Kg2 {[%clk 0:00:06]}  Qg4+ {[%clk 0:00:04]} 41. Qg3 {[%clk 0:00:07]}  Qxe4+ {[%clk 0:00:04]} 42. Qf3 {[%clk 0:00:07]}  Qe6 {[%clk 0:00:04]} 43. Nxe6 {[%clk 0:00:07]} 1-0


[Site "https://www.chess.com"]

[Event "Titled Tuesday Blitz November 15 Early 2022"]
[White "Jaskolka, Tomasz"]
[Black "Lauridsen, Jesper Morch"]
[WhiteFideId "1170791"]
[BlackFideId "1401890"]
[WhiteElo "2126"]
[BlackElo "2230"]
[Result "1-0"]
[Round "04"]
[TimeControl "180+1"]
[Date "2022.11.16"]
[WhiteClock "0:00:44"]
[BlackClock "0:00:13"]

1. e4 {[%clk 0:03:00]}  c5 {[%clk 0:02:59]} 2. Nf3 {[%clk 0:03:00]}  d6 {[%clk 0:02:59]} 3. Bb5+ {[%clk 0:02:59]}  Bd7 {[%clk 0:02:57]} 4. Bxd7+ {[%clk 0:02:59]}  Qxd7 {[%clk 0:02:57]} 5. O-O {[%clk 0:02:59]}  Nc6 {[%clk 0:02:56]} 6. c3 {[%clk 0:03:00]}  Nf6 {[%clk 0:02:55]} 7. Re1 {[%clk 0:02:59]}  e6 {[%clk 0:02:55]} 8. d4 {[%clk 0:02:59]}  cxd4 {[%clk 0:02:53]} 9. cxd4 {[%clk 0:03:00]}  d5 {[%clk 0:02:53]} 10. e5 {[%clk 0:03:01]}  Ne4 {[%clk 0:02:54]} 11. Nc3 {[%clk 0:02:58]}  Nxc3 {[%clk 0:02:51]} 12. bxc3 {[%clk 0:02:58]}  Be7 {[%clk 0:02:48]} 13. Bg5 {[%clk 0:02:54]}  Rc8 {[%clk 0:02:44]} 14. Rb1 {[%clk 0:02:53]}  Bxg5 {[%clk 0:02:35]} 15. Nxg5 {[%clk 0:02:53]}  Na5 {[%clk 0:02:33]} 16. Qd3 {[%clk 0:02:41]}  h6 {[%clk 0:02:17]} 17. Nh3 {[%clk 0:02:40]}  Qc6 {[%clk 0:02:12]} 18. Rec1 {[%clk 0:02:33]}  Qc4 {[%clk 0:02:08]} 19. Qxc4 {[%clk 0:02:30]}  Rxc4 {[%clk 0:02:04]} 20. f4 {[%clk 0:02:25]}  Ke7 {[%clk 0:01:47]} 21. Nf2 {[%clk 0:02:17]}  Rhc8 {[%clk 0:01:46]} 22. Nd1 {[%clk 0:02:18]}  b6 {[%clk 0:01:40]} 23. Kf2 {[%clk 0:02:18]}  Nc6 {[%clk 0:01:34]} 24. Nb2 {[%clk 0:02:05]}  Nxe5 {[%clk 0:01:26]} 25. fxe5 {[%clk 0:01:57]}  Rxc3 {[%clk 0:01:26]} 26. Rxc3 {[%clk 0:01:58]}  Rxc3 {[%clk 0:01:25]} 27. Re1 {[%clk 0:01:43]}  Ra3 {[%clk 0:01:21]} 28. Ra1 {[%clk 0:01:32]}  Rc3 {[%clk 0:01:20]} 29. Nd1 {[%clk 0:01:32]}  Rd3 {[%clk 0:01:16]} 30. Rc1 {[%clk 0:01:26]}  Rxd4 {[%clk 0:01:15]} 31. Ne3 {[%clk 0:01:21]}  Rd2+ {[%clk 0:01:08]} 32. Kf3 {[%clk 0:01:21]}  Rxa2 {[%clk 0:01:07]} 33. Rc7+ {[%clk 0:01:21]}  Ke8 {[%clk 0:01:07]} 34. Nc2 {[%clk 0:01:15]}  Kd8 {[%clk 0:01:00]} 35. Rc3 {[%clk 0:01:12]}  Kd7 {[%clk 0:00:54]} 36. Nd4 {[%clk 0:01:11]}  Ra4 {[%clk 0:00:50]} 37. Nb5 {[%clk 0:00:54]}  a6 {[%clk 0:00:30]} 38. Nd6 {[%clk 0:00:51]}  f6 {[%clk 0:00:29]} 39. exf6 {[%clk 0:00:49]}  gxf6 {[%clk 0:00:27]} 40. Nf7 {[%clk 0:00:50]}  b5 {[%clk 0:00:18]} 41. Nxh6 {[%clk 0:00:48]}  b4 {[%clk 0:00:19]} 42. Rc1 {[%clk 0:00:47]}  b3 {[%clk 0:00:18]} 43. Ng4 {[%clk 0:00:45]}  Ke7 {[%clk 0:00:15]} 44. Ne3 {[%clk 0:00:45]}  b2 {[%clk 0:00:15]} 45. Rb1 {[%clk 0:00:46]}  Rb4 {[%clk 0:00:15]} 46. Nd1 {[%clk 0:00:45]}  a5 {[%clk 0:00:14]} 47. Rxb2 {[%clk 0:00:45]}  Rxb2 {[%clk 0:00:13]} 48. Nxb2 {[%clk 0:00:46]}  e5 {[%clk 0:00:13]} 49. Ke3 {[%clk 0:00:47]}  Ke6 {[%clk 0:00:13]} 50. g4 {[%clk 0:00:46]}  d4+ {[%clk 0:00:12]} 51. Ke4 {[%clk 0:00:46]}  Kd6 {[%clk 0:00:12]} 52. h4 {[%clk 0:00:47]}  Kc5 {[%clk 0:00:13]} 53. h5 {[%clk 0:00:47]}  Kb4 {[%clk 0:00:13]} 54. h6 {[%clk 0:00:47]}  Kb3 {[%clk 0:00:13]} 55. Nd3 {[%clk 0:00:46]}  a4 {[%clk 0:00:13]} 56. h7 {[%clk 0:00:44]} 1-0


[Site "https://www.chess.com"]